fUST/lending_fUST_20250815
["ID","MTS","AMOUNT","RATE_DAILY","PERIOD"]
[379239783,1755214232836,-293.6437586,0.000214,2]
[379239785,1755214232847,-293.6437586,0.000214,2]
[379239787,1755214232858,-293.6437586,0.000214,2]
[379239789,1755214232867,-605.39467192,0.00021476,6]
[379239791,1755214232876,-149.08938051,0.00021688,6]
[379239797,1755214238360,-456.30529141,0.00021688,6]
[379239798,1755214238371,-550.95720169,0.000218,2]
[379239799,1755214238382,-217.62306181,0.000218,2]
[379240397,1755214733634,162.879376,0.00013699,2]
[379240402,1755215229181,-215.59581046,0.00019696,2]
[379240403,1755215229706,-300.0,0.00019696,2]
[379240404,1755215229730,-104.66096954,0.00019697,2]
[379240420,1755215432502,-302.66710251,0.00019481,2]
[379240422,1755215432511,-302.69733596,0.00019481,2]
[379240424,1755215432520,-302.66710251,0.00019676,2]
[379240426,1755215432530,-302.69733596,0.00019676,2]
[379240428,1755215432540,-195.0,0.00019695,2]
[379240430,1755215432549,-300.0,0.00019695,2]
[379240432,1755215432558,-1200.0,0.00019695,2]
[379240434,1755215432567,-300.0,0.00019695,2]
[379240436,1755215432577,-300.0,0.00019695,2]
[379240438,1755215432586,-300.0,0.00019695,2]
[379240440,1755215432595,-2000.0,0.00019696,2]
[379240442,1755215432605,-460.0,0.00019696,2]
[379240444,1755215432614,-1800.70663769,0.000197,2]
[379240447,1755215432623,-8262.3198795,0.000197,2]
[379240449,1755215432633,-699.9120647,0.000197,2]
[379240451,1755215432642,-454.00065376,0.00019871,4]
[379240453,1755215432651,-454.04600394,0.00019871,4]
[379240455,1755215432660,-454.00065376,0.00020065,4]
[379240457,1755215432670,-225.91932326,0.00020065,4]
[379240459,1755215432679,-200.0,0.0002009,20]
[379240462,1755215432689,-200.0,0.0002009,20]
[379240465,1755215432698,-200.0,0.0002009,20]
[379240468,1755215432707,-200.0,0.0002009,20]
[379240471,1755215432716,-200.0,0.0002009,20]
[379240474,1755215432725,-200.0,0.0002009,20]
[379240477,1755215432734,-200.0,0.0002009,20]
[379240480,1755215432743,-200.0,0.0002009,20]
[379240483,1755215432754,-250.0,0.0002019,2]
[379240486,1755215432763,-666.0,0.00020212,2]
[379240489,1755215432772,-454.00065376,0.0002026,4]
[379240492,1755215432781,-301.906729,0.00020306,2]
[379240495,1755215432790,-454.00065376,0.00020455,4]
[379240497,1755215432800,-485.085,0.00020549,2]
[379240499,1755215432809,-454.00065376,0.0002065,4]
[379240501,1755215432818,-605.33420501,0.00020845,6]
[379240503,1755215432828,-162.879376,0.00020951,2]
[379240505,1755215432837,-605.33420501,0.00021039,6]
[379240507,1755215432846,-293.6437586,0.00021078,2]
[379240509,1755215432855,-460.0,0.00021198,2]
[379240511,1755215432864,-460.0,0.00021199,2]
[379240513,1755215432874,-587.2875172,0.000212,2]
[379240515,1755215432884,-293.6437586,0.000212,2]
[379240517,1755215432894,-605.33420501,0.00021234,6]
[379240519,1755215432903,-160.0,0.0002137,2]
[379240521,1755215432912,-293.6437586,0.000214,2]
[379240523,1755215432921,-420.0,0.00021452,2]
[379240525,1755215432931,-460.0,0.00021472,2]
[379240527,1755215432940,-460.0,0.00021473,2]
[379240529,1755215432949,-162.07389059,0.00021616,2]
[379240531,1755215432958,-460.0,0.00021746,2]
[379240533,1755215432967,-287.00000007,0.00021747,2]
[379240535,1755215432978,-162.07389059,0.00021781,2]
[379240537,1755215432987,-242.831,0.0002179,2]
[379240539,1755215432997,-300.0,0.00021794,2]
[379240541,1755215433006,-482.08755147,0.000218,2]
[379240543,1755215433015,-500.0,0.000218,2]
[379240545,1755215433024,-160.0,0.00021832,2]
[379240547,1755215433033,-232.05637125,0.00021846,2]
[379240549,1755215433044,-843.37884167,0.00021846,2]
[379240550,1755215433053,-216.75489391,0.00021846,2]
[379240552,1755215433062,-160.0,0.00021847,2]
[379240554,1755215433072,-1761.0,0.00021859,2]
[379240556,1755215433081,-1761.0,0.00021859,2]
[379240558,1755215433091,-1761.0,0.00021859,2]
[379240559,1755215433100,-449.44807751,0.0002189,2]
[379240561,1755215433110,-254.0000001,0.00021899,2]
[379240562,1755215433119,-1268.3,0.00021899,2]
[379240563,1755215433130,-3216.25275006,0.000219,2]
[379240579,1755215438539,-466.60804314,0.00019799,2]
[379240580,1755215438548,-320.62891189,0.00021746,2]
[379240581,1755215438559,-179.37108811,0.00021746,2]
[379240582,1755215438569,-1215.46,0.00021899,2]
[379240583,1755215438578,-21143.5346613,0.000219,2]
[379240584,1755215438587,-151.0,0.000219,2]
[379240585,1755215438596,-250.0,0.000219,10]
[379240586,1755215438605,-151.0,0.000219,2]
[379240587,1755215438614,-151.0,0.000219,2]
[379240588,1755215438623,-151.0,0.000219,2]
[379240589,1755215438632,-425.0,0.000219,2]
[379240590,1755215438642,-151.0,0.000219,2]
[379240591,1755215438651,-151.0,0.000219,2]
[379240592,1755215438660,-151.0,0.000219,2]
[379240593,1755215438670,-151.10329791,0.000219,2]
[379240594,1755215438679,-151.0,0.000219,2]
[379240595,1755215438688,-151.0,0.000219,2]
[379240596,1755215438697,-165.20798353,0.000219,2]
[379240597,1755215438707,-281.31197946,0.000219,2]
[379240598,1755215438716,-151.0,0.000219,2]
[379240599,1755215438725,-151.0,0.000219,2]
[379240600,1755215438734,-151.0,0.000219,2]
[379240601,1755215438743,-151.0,0.000219,2]
[379240602,1755215438752,-1200.0,0.00021904,2]
[379240603,1755215438761,-764.05,0.00021917,2]
[379240604,1755215438771,-153.0,0.00021918,2]
[379240605,1755215438780,-173.0,0.00021918,2]
[379240606,1755215438789,-173.0,0.00021918,2]
[379240607,1755215438798,-175.17434274,0.00021918,2]
[379240608,1755215438807,-173.0,0.00021918,2]
[379240609,1755215438817,-152.0,0.00021918,2]
[379240610,1755215438826,-152.0,0.00021918,2]
[379240611,1755215438836,-152.0,0.00021918,2]
[379240612,1755215438845,-152.0,0.00021918,2]
[379240613,1755215438855,-152.0,0.00021918,2]
[379240614,1755215438865,-152.0,0.00021918,2]
[379240615,1755215438875,-152.0,0.00021918,2]
[379240616,1755215438884,-152.0,0.00021918,2]
[379240617,1755215438894,-152.0,0.00021918,2]
[379240618,1755215438903,-152.0,0.00021918,2]
[379240619,1755215438913,-152.0,0.00021918,2]
[379240620,1755215438922,-152.0,0.00021918,2]
[379240621,1755215438931,-152.0,0.00021918,2]
[379240622,1755215438940,-152.0,0.00021918,2]
[379240623,1755215438949,-152.0,0.00021918,2]
[379240624,1755215438959,-152.0,0.00021918,2]
[379240625,1755215438968,-152.0,0.00021918,2]
[379240626,1755215438978,-152.0,0.00021918,2]
[379240627,1755215438987,-152.0,0.00021918,2]
[379240628,1755215438996,-152.0,0.00021918,2]
[379240629,1755215439006,-152.0,0.00021918,2]
[379240630,1755215439015,-152.0,0.00021918,2]
[379240631,1755215439024,-152.0,0.00021918,2]
[379240632,1755215439033,-152.0,0.00021918,2]
[379240633,1755215439042,-152.0,0.00021918,2]
[379240634,1755215439052,-152.0,0.00021918,2]
[379240635,1755215439061,-152.0,0.00021918,2]
[379240636,1755215439070,-152.0,0.00021918,2]
[379240637,1755215439079,-152.0,0.00021918,2]
[379240638,1755215439088,-152.0,0.00021918,2]
[379240639,1755215439097,-152.0,0.00021918,2]
[379240640,1755215439107,-152.0,0.00021918,2]
[379240641,1755215439116,-152.0,0.00021918,2]
[379240642,1755215439125,-152.0,0.00021918,2]
[379240643,1755215439138,-152.0,0.00021918,2]
[379240644,1755215439148,-152.0,0.00021918,2]
[379240645,1755215439161,-152.0,0.00021918,2]
[379240646,1755215439171,-152.0,0.00021918,2]
[379240647,1755215439180,-152.0,0.00021918,2]
[379240648,1755215439189,-152.0,0.00021918,2]
[379240649,1755215439199,-152.0,0.00021918,2]
[379240650,1755215439208,-152.0,0.00021918,2]
[379240651,1755215439218,-152.0,0.00021918,2]
[379240652,1755215439227,-152.0,0.00021918,2]
[379240653,1755215439237,-152.0,0.00021918,2]
[379240654,1755215439247,-152.0,0.00021918,2]
[379240655,1755215439256,-72.63290285,0.00021918,2]
[379240656,1755215439270,-79.36709715,0.00021918,2]
[379240657,1755215439279,-152.0,0.00021918,2]
[379240658,1755215439288,-152.0,0.00021918,2]
[379240659,1755215439298,-152.0,0.00021918,2]
[379240660,1755215439308,-152.0,0.00021918,2]
[379240661,1755215439317,-152.0,0.00021918,2]
[379240662,1755215439327,-152.0,0.00021918,2]
[379240663,1755215439337,-152.0,0.00021918,2]
[379240664,1755215439347,-212.87799942,0.00021918,2]
[379240665,1755215439356,-152.0,0.00021918,2]
[379240666,1755215439365,-152.0,0.00021918,2]
[379240667,1755215439375,-173.0,0.00021918,2]
[379240668,1755215439384,-151.0,0.00021918,7]
[379240669,1755215439394,-151.00096,0.00021918,7]
[379240670,1755215439404,-151.00096,0.00021918,7]
[379240671,1755215439413,-151.0,0.00021918,7]
[379240672,1755215439423,-217.76820322,0.00021918,2]
[379240673,1755215439432,-151.0,0.00021918,2]
[379240674,1755215439442,-151.0,0.00021918,2]
[379240675,1755215439451,-151.0,0.00021918,7]
[379240676,1755215439460,-151.0,0.00021918,7]
[379240677,1755215439470,-151.0,0.00021918,7]
[379240678,1755215439479,-162.07389059,0.00021945,2]
[379240679,1755215439489,-434.07318996,0.00021962,2]
[379240680,1755215439499,-616.34636173,0.00021963,10]
[379240682,1755215440371,-250.0,0.00021963,10]
[379240783,1755215446634,-153.124499,0.0002197,7]
[379240784,1755215446644,-151.0,0.00021972,7]
[379240785,1755215446653,-500.0,0.00021973,2]
[379240786,1755215446663,-500.0,0.00021973,2]
[379240787,1755215446672,-500.0,0.00021973,2]
[379240788,1755215446682,-500.0,0.00021973,2]
[379240789,1755215446691,-500.0,0.00021973,2]
[379240790,1755215446700,-500.0,0.00021973,2]
[379240791,1755215446710,-500.0,0.00021973,2]
[379240792,1755215446719,-500.0,0.00021973,2]
[379240793,1755215446728,-500.0,0.00021973,2]
[379240794,1755215446738,-500.0,0.00021973,2]
[379240795,1755215446748,-500.0,0.00021973,2]
[379240796,1755215446757,-500.0,0.00021973,2]
[379240797,1755215446766,-200.0,0.00021973,2]
[379240798,1755215446776,-500.0,0.00021973,2]
[379240799,1755215446785,-500.0,0.00021973,2]
[379240800,1755215446794,-500.0,0.00021973,2]
[379240801,1755215446803,-500.0,0.00021973,2]
[379240802,1755215446812,-1135.97172,0.00021973,7]
[379240803,1755215446821,-1135.97172,0.00021973,7]
[379240804,1755215446830,-151.0,0.00021973,7]
[379240805,1755215446839,-151.0,0.00021973,7]
[379240806,1755215446849,-158.177569,0.00021973,7]
[379240807,1755215446858,-151.00096,0.0002198,7]
[379240808,1755215446868,-151.00096,0.0002198,7]
[379240809,1755215446877,-151.0,0.0002198,7]
[379240810,1755215446887,-325.32,0.0002199,3]
[379240811,1755215446896,-162.66,0.0002199,3]
[379240812,1755215446905,-487.98,0.0002199,3]
[379240813,1755215446915,-17328.43605795,0.0002199,2]
[379240824,1755215752321,162.879376,0.00013699,2]
[379240836,1755216011192,2686.56,0.000296,120]
[379240837,1755216011658,895.51,0.000228,30]
[379240852,1755216454128,-800.0,0.00019712,2]
[379240853,1755216454153,-461.9529908,0.00019889,2]
[379240854,1755216454177,-191.30164396,0.0002,2]
[379240855,1755216454200,-160.0,0.00020553,2]
[379240856,1755216454225,-232.05637125,0.00020554,2]
[379240857,1755216454249,-843.37884167,0.00020554,2]
[379240858,1755216454274,-216.75489391,0.00020555,2]
[379240859,1755216454297,-408.0,0.00020568,2]
[379240860,1755216454320,-14.19313641,0.00020761,2]
[379240978,1755216635731,200.0,0.00027,120]
[379240979,1755216636314,200.0,0.000278,120]
[379240980,1755216636421,200.0,0.000286,120]
[379240981,1755216636700,200.0,0.000294,120]
[379240982,1755216636858,-426.18,0.00019712,2]
[379240983,1755216636870,-273.82,0.00019712,2]
[379240984,1755216636879,-384.34587259,0.00020761,2]
[379240985,1755216636888,-160.0,0.00020761,2]
[379240986,1755216636897,-216.75489391,0.00020761,2]
[379240987,1755216636908,-232.05637125,0.00020807,2]
[379240988,1755216636917,-843.37884167,0.00020807,2]
[379240989,1755216636926,-533.16030348,0.00020808,2]
[379241004,1755216638780,-166.83969652,0.00020808,2]
[379241005,1755216638790,-183.079199,0.00020848,2]
[379241006,1755216638800,-666.0,0.00020879,2]
[379241007,1755216638809,-300.0,0.00021198,2]
[379241008,1755216638818,-187.57351408,0.00021198,2]
[379241009,1755216638830,-1012.42648592,0.00021198,2]
[379241010,1755216638840,-300.0,0.00021198,2]
[379241011,1755216638850,-367.67028001,0.00021199,2]
[379241012,1755216638859,-1164.81,0.00021199,2]
[379241013,1755216638869,-1164.81,0.00021473,2]
[379241014,1755216638878,-1164.81,0.00021747,2]
[379241015,1755216638888,-153.0,0.00021753,2]
[379241016,1755216638897,-625.13703899,0.0002189,2]
[379241017,1755216638908,-151.0,0.000219,2]
[379241018,1755216638918,-151.0,0.000219,2]
[379241019,1755216638928,-151.0,0.000219,2]
[379241020,1755216638938,-151.0,0.000219,2]
[379241021,1755216638948,-700.0,0.00021904,2]
[379241022,1755216638958,-732.22,0.00021917,2]
[379241023,1755216638968,-732.22,0.00021917,2]
[379241024,1755216638978,-732.22,0.00021917,2]
[379241025,1755216638989,-732.22,0.00021917,2]
[379241026,1755216638999,-162.879376,0.00021918,2]
[379241027,1755216639010,-151.0,0.00021918,7]
[379241028,1755216639020,-151.0,0.00021918,7]
[379241029,1755216639030,-151.0,0.00021918,7]
[379241030,1755216639039,-151.0,0.00021918,7]
[379241031,1755216639048,-732.22,0.0002194,2]
[379241032,1755216639058,-151.0,0.00021945,7]
[379241033,1755216639067,-151.0,0.00021972,7]
[379241034,1755216639076,-500.0,0.00021973,2]
[379241035,1755216639086,-500.0,0.00021973,2]
[379241036,1755216639096,-500.0,0.00021973,2]
[379241037,1755216639105,-500.0,0.00021973,2]
[379241038,1755216639114,-218.33198559,0.00021973,2]
[379241039,1755216639127,-281.66801441,0.00021973,2]
[379241040,1755216639136,-500.0,0.00021973,2]
[379241041,1755216639146,-320.49281799,0.00021973,2]
[379241042,1755216639156,-500.0,0.00021973,2]
[379241043,1755216639165,-151.0,0.00021973,7]
[379241044,1755216639174,-151.0,0.00021973,7]
[379241045,1755216639184,-194.265,0.00021973,2]
[379241046,1755216639194,-151.0,0.0002198,7]
[379241047,1755216639203,-151.0,0.0002198,7]
[379241048,1755216639212,-449.21,0.00021989,2]
[379241049,1755216639222,-162.66,0.0002199,3]
[379241050,1755216639231,-487.98,0.0002199,3]
[379241051,1755216639240,-8977.1,0.0002199,10]
[379241052,1755216639249,-1182.6241676,0.0002199,10]
[379241058,1755216640672,-359.55846204,0.000219,2]
[379241060,1755216640682,-528.19044044,0.0002199,10]
[379241062,1755216640691,-2569.02823734,0.0002199,2]
[379241075,1755216640814,-752.72382974,0.0002199,2]
[379241077,1755216640827,-881.05,0.0002199,2]
[379241079,1755216640839,-1890.73565723,0.0002199,2]
[379241080,1755216640848,-151.0,0.0002199,7]
[379241081,1755216640857,-151.0,0.0002199,7]
[379241082,1755216640867,-118.63864467,0.0002199,7]
[379241247,1755216646663,-32.36135533,0.0002199,7]
[379241248,1755216646672,-178.249702,0.0002199,7]
[379241249,1755216646682,-151.0,0.0002199,7]
[379241250,1755216646692,-151.0,0.0002199,7]
[379241251,1755216646701,-135.71391437,0.0002199,7]
[379241252,1755216646713,-60.47881963,0.0002199,7]
[379241253,1755216646723,-183.97517,0.0002199,7]
[379241254,1755216646732,-183.97517,0.0002199,7]
[379241255,1755216646742,-151.0,0.0002199,7]
[379241256,1755216646752,-1147.355494,0.0002199,7]
[379241257,1755216646761,-1147.355494,0.0002199,7]
[379241258,1755216646771,-151.0,0.0002199,7]
[379241259,1755216646782,-132.27410527,0.0002199,7]
[379241260,1755216646798,-18.72589473,0.0002199,7]
[379241261,1755216646807,-151.0,0.0002199,7]
[379241262,1755216646816,-268.694347,0.0002199,7]
[379241263,1755216646826,-151.00096,0.0002199,7]
[379241264,1755216646835,-151.00096,0.0002199,7]
[379241265,1755216646845,-151.00096,0.0002199,7]
[379241266,1755216646855,-151.00096,0.0002199,7]
[379241267,1755216646865,-151.0,0.0002199,7]
[379241268,1755216646874,-151.0,0.0002199,7]
[379241269,1755216646883,-151.0,0.0002199,7]
[379241270,1755216646893,-151.0,0.0002199,7]
[379241271,1755216646903,-151.0,0.0002199,7]
[379241272,1755216646913,-151.0,0.0002199,7]
[379241273,1755216646922,-151.0,0.0002199,7]
[379241274,1755216646932,-151.0,0.0002199,7]
[379241275,1755216646941,-151.0,0.0002199,7]
[379241276,1755216646951,-151.0,0.0002199,7]
[379241277,1755216646960,-151.0,0.0002199,7]
[379241278,1755216646970,-270.557024,0.0002199,7]
[379241279,1755216646979,-151.231577,0.0002199,7]
[379241280,1755216646988,-1043.034631,0.0002199,7]
[379241281,1755216646998,-1043.034631,0.0002199,7]
[379241282,1755216647007,-1043.034631,0.0002199,7]
[379241283,1755216647017,-1043.034631,0.0002199,7]
[379241284,1755216647026,-1043.034631,0.0002199,7]
[379241285,1755216647036,-1043.034631,0.0002199,7]
[379241286,1755216647046,-1043.034631,0.0002199,7]
[379241287,1755216647056,-1043.034631,0.0002199,7]
[379241288,1755216647066,-151.0,0.0002199,7]
[379241289,1755216647075,-160.0,0.0002199,7]
[379241290,1755216647086,-500.0,0.0002199,2]
[379241291,1755216647096,-165.855554,0.0002199,7]
[379241292,1755216647106,-151.0,0.0002199,7]
[379241293,1755216647116,-151.0,0.0002199,7]
[379241294,1755216647125,-268.761912,0.0002199,7]
[379241295,1755216647135,-328.4539914,0.0002199,2]
[379241296,1755216647147,-287.77649221,0.0002199,2]
[379241297,1755216647156,-240.59459901,0.00021999,2]
[379241298,1755216647167,-730.93484177,0.00022,2]
[379241299,1755216647179,-169.41847708,0.00022,2]
[379241300,1755216647188,-155.0,0.00022,4]
[379241301,1755216647199,-156.0,0.00022,4]
[379241302,1755216647208,-500.0,0.00022,10]
[379241303,1755216647218,-500.0,0.00022,7]
[379241304,1755216647227,-500.0,0.00022,7]
[379241305,1755216647240,-500.0,0.00022,7]
[379241306,1755216647250,-500.0,0.00022,3]
[379241307,1755216647260,-416.55,0.00022,7]
[379241308,1755216647269,-8952.76848122,0.00022,2]
[379241346,1755216701160,243.056697,0.0002162,30]
[379241497,1755217189195,166.398377,0.00013699,2]
[379241507,1755217459852,5000.0,0.00022961,30]
[379241508,1755217461017,5000.0,0.00022961,30]
[379241509,1755217461635,5000.0,0.00022961,30]
[379241510,1755217462308,5000.0,0.00022961,30]
[379241511,1755217468535,5000.0,0.00022961,30]
[379241512,1755217469659,5000.0,0.00022961,30]
[379241513,1755217470248,5000.0,0.00022961,30]
[379241514,1755217470818,5000.0,0.00022961,30]
[379241515,1755217471388,5000.0,0.00022961,30]
[379241516,1755217471979,5000.0,0.00022961,30]
[379241517,1755217472579,5000.0,0.00022961,30]
[379241518,1755217473151,5000.0,0.00022961,30]
[379241519,1755217473900,5000.0,0.00022961,30]
[379241520,1755217475055,4402.05,0.00022961,30]
[379241527,1755217548891,200.0,0.00023,30]
[379241533,1755217631517,-600.0,0.00019986,2]
[379241534,1755217631538,-666.0,0.00020471,2]
[379241535,1755217631560,-453.50035006,0.00020709,2]
[379241536,1755217631580,-483.803271,0.00020732,2]
[379241537,1755217631601,-60.29118674,0.00020739,2]
[379241560,1755217831840,-500.0,0.00019986,2]
[379241613,1755217832353,-160.0,0.00020735,2]
[379241615,1755217832362,-925.33003956,0.00020861,2]
[379241617,1755217832372,-160.0,0.00020996,2]
[379241619,1755217832382,-216.75489391,0.00020996,2]
[379241621,1755217832391,-232.05637125,0.00020997,2]
[379241623,1755217832401,-843.37884167,0.00020997,2]
[379241625,1755217832410,-408.0,0.00021015,2]
[379241627,1755217832419,-1200.0,0.00021081,2]
[379241629,1755217832428,-500.0,0.00021082,2]
[379241631,1755217832438,-300.0,0.00021895,2]
[379241633,1755217832447,-300.0,0.00021895,2]
[379241635,1755217832456,-300.0,0.00021895,2]
[379241637,1755217832466,-300.0,0.00021895,2]
[379241639,1755217832475,-300.0,0.00021895,2]
[379241641,1755217832484,-202.681029,0.00021899,2]
[379241643,1755217832493,-155.412,0.00021899,2]
[379241645,1755217832502,-460.0,0.00021899,2]
[379241647,1755217832512,-20684.51918641,0.000219,2]
[379241649,1755217832521,-869.67088918,0.000219,2]
[379241651,1755217832530,-166.398377,0.00021918,2]
[379241653,1755217832540,-570.24429116,0.00021942,2]
[379241654,1755217832549,-431.70686784,0.00021973,2]
[379241656,1755217832559,-500.0,0.00021973,2]
[379241658,1755217832568,-211.63980582,0.00021973,2]
[379241660,1755217832577,-700.98,0.00021974,2]
[379241662,1755217832586,-485.642292,0.00021989,2]
[379241664,1755217832595,-579.67,0.00021989,2]
[379241666,1755217832605,-1019.21,0.00021989,2]
[379241668,1755217832614,-325.32,0.0002199,3]
[379241670,1755217832623,-151.0,0.0002199,7]
[379241672,1755217832632,-151.0,0.0002199,7]
[379241674,1755217832641,-151.0,0.0002199,7]
[379241676,1755217832650,-500.0,0.00021999,2]
[379241678,1755217832659,-500.0,0.00021999,2]
[379241680,1755217832668,-500.0,0.00021999,2]
[379241682,1755217832677,-490.79340659,0.00021999,2]
[379241684,1755217832687,-500.0,0.00021999,2]
[379241686,1755217832697,-500.0,0.00021999,2]
[379241688,1755217832706,-1090.8567284,0.00022,2]
[379241690,1755217832715,-3846.67056454,0.00022,2]
[379241692,1755217832727,-37.09095424,0.00022,2]
[379241694,1755217832736,-160.0,0.00022,7]
[379241696,1755217832745,-200.9598613,0.00022,4]
[379241698,1755217832755,-266.20375176,0.00022,2]
[379241701,1755217832767,-55283.37730764,0.00022,2]
[379241703,1755217832776,-354.41551824,0.00022,2]
[379241705,1755217832785,-1716.62691842,0.00022,2]
[379241707,1755217832794,-11496.04,0.00022,7]
[379241709,1755217832805,-25263.64,0.00022,7]
[379241711,1755217832816,-151.0,0.00022,7]
[379241713,1755217832826,-151.0,0.00022,7]
[379241714,1755217832835,-151.0,0.00022,7]
[379241716,1755217832845,-151.0,0.00022,7]
[379241718,1755217832854,-151.0,0.00022,7]
[379241720,1755217832864,-151.0,0.00022,7]
[379241722,1755217832873,-178.922034,0.00022,7]
[379241724,1755217832884,-151.0,0.00022,7]
[379241726,1755217832893,-207.710293,0.00022,7]
[379241728,1755217832903,-151.0,0.00022,7]
[379241730,1755217832912,-151.0,0.00022,7]
[379241732,1755217832922,-190.617263,0.00022,7]
[379241734,1755217832931,-151.0,0.00022,7]
[379241736,1755217832941,-151.0,0.00022,7]
[379241738,1755217832952,-183.97517,0.00022,7]
[379241740,1755217832962,-183.97517,0.00022,7]
[379241742,1755217832971,-183.97517,0.00022,7]
[379241744,1755217832980,-183.97517,0.00022,7]
[379241746,1755217832990,-183.97517,0.00022,7]
[379241748,1755217832999,-183.97517,0.00022,7]
[379241750,1755217833008,-153.280523,0.00022,7]
[379241752,1755217833018,-151.0,0.00022,7]
[379241754,1755217833028,-151.481524,0.00022,7]
[379241756,1755217833038,-1147.355494,0.00022,7]
[379241758,1755217833048,-1147.355494,0.00022,7]
[379241760,1755217833058,-693.90197186,0.00022,7]
[379241762,1755217833072,-453.45352214,0.00022,7]
[379241764,1755217833082,-197.55580155,0.00022,7]
[379241767,1755217833094,-949.79969245,0.00022,7]
[379241769,1755217833104,-1147.355494,0.00022,7]
[379241771,1755217833114,-113.82659575,0.00022,7]
[379241773,1755217833126,-1033.52889825,0.00022,7]
[379241775,1755217833135,-151.0,0.00022,7]
[379241778,1755217833153,-75.63381477,0.00022,7]
[379241791,1755217837679,-3630.8,0.0002199,10]
[379241792,1755217837689,-75.36618523,0.00022,7]
[379241793,1755217837701,-151.0,0.00022,7]
[379241794,1755217837710,-151.00096,0.00022,7]
[379241795,1755217837719,-151.00096,0.00022,7]
[379241796,1755217837728,-151.00096,0.00022,7]
[379241797,1755217837737,-151.00096,0.00022,7]
[379241798,1755217837746,-151.00096,0.00022,7]
[379241799,1755217837755,-151.00096,0.00022,7]
[379241800,1755217837764,-151.00096,0.00022,7]
[379241801,1755217837773,-151.00096,0.00022,7]
[379241803,1755217837782,-151.00096,0.00022,7]
[379241805,1755217837791,-151.00096,0.00022,7]
[379241806,1755217837801,-151.00096,0.00022,7]
[379241807,1755217837815,-151.00097,0.00022,7]
[379241808,1755217837836,-151.0,0.00022,7]
[379241809,1755217837855,-151.0,0.00022,7]
[379241811,1755217837865,-151.0,0.00022,7]
[379241812,1755217837874,-156.862684,0.00022,7]
[379241813,1755217837884,-151.0,0.00022,7]
[379241814,1755217837894,-151.0,0.00022,7]
[379241815,1755217837904,-179.204772,0.00022,7]
[379241816,1755217837914,-151.0,0.00022,7]
[379241817,1755217837923,-152.780203,0.00022,7]
[379241818,1755217837933,-151.0,0.00022,7]
[379241819,1755217837942,-151.0,0.00022,7]
[379241820,1755217837954,-1043.034631,0.00022,7]
[379241821,1755217837964,-1043.034631,0.00022,7]
[379241822,1755217837973,-1043.034631,0.00022,7]
[379241823,1755217837983,-1043.034631,0.00022,7]
[379241824,1755217837992,-1043.034631,0.00022,7]
[379241825,1755217838001,-1043.034631,0.00022,7]
[379241826,1755217838011,-352.82761072,0.00022,7]
[379241827,1755217838022,-290.75999998,0.00022,7]
[379241828,1755217838034,-399.4470203,0.00022,7]
[379241829,1755217838044,-1043.034631,0.00022,7]